bitfinex/quotes_BTCUSD_20241014
["timestamp","ask_amount","ask_price","bid_price","bid_amount"]
[1728880514270,1.11627501,64453.0,64452.0,0.002642]
[1728880514523,1.14978952,64453.0,64452.0,0.002642]
[1728880514763,1.26273014,64453.0,64452.0,0.002642]
[1728880514990,0.86473014,64453.0,64452.0,0.002642]
[1728880515495,0.31865828,64445.0,64444.0,0.001642]
[1728880515750,0.74978229,64445.0,64444.0,0.001642]
[1728880515993,0.79629084,64445.0,64444.0,0.001642]
[1728880516245,0.63780356,64445.0,64444.0,0.001642]
[1728880516495,0.79628941,64445.0,64444.0,0.001642]
[1728880516726,0.75178229,64445.0,64444.0,0.001642]
[1728880516959,0.79828941,64445.0,64444.0,0.001642]
[1728880517201,1.30128941,64445.0,64444.0,0.002642]
[1728880517720,1.27014668,64445.0,64444.0,0.002642]
[1728880517965,1.31663406,64445.0,64444.0,0.002642]
[1728880518454,1.27014668,64445.0,64444.0,0.002642]
[1728880518456,1.1116594,64445.0,64444.0,0.002642]
[1728880518922,1.1136594,64445.0,64444.0,0.002642]
[1728880519692,1.1156594,64445.0,64444.0,0.002642]
[1728880519952,1.44153388,64445.0,64444.0,0.002642]
[1728880520219,1.39802911,64445.0,64444.0,0.002642]
[1728880520453,0.428797,64434.0,64433.0,0.23275842]
[1728880520716,0.74650829,64434.0,64433.0,0.23275842]
[1728880520963,0.155216,64426.0,64416.0,0.02111369]
[1728880521194,0.155216,64426.0,64418.0,0.155235]
[1728880521713,0.155216,64426.0,64419.0,0.155233]
[1728880521959,0.310421,64429.0,64421.0,0.23275842]
[1728880521960,0.31043,64427.0,64421.0,0.23275842]
[1728880522207,0.15522,64425.0,64421.0,0.23275842]
[1728880522461,0.5,64426.0,64422.0,0.23275842]
[1728880522682,0.5,64426.0,64424.0,0.155221]
[1728880522902,0.504,64426.0,64424.0,0.155221]
[1728880523119,0.504,64426.0,64421.0,0.310453]
[1728880523381,0.504,64426.0,64419.0,0.23275842]
[1728880523382,0.002,64425.0,64419.0,0.23275842]
[1728880523619,0.002,64425.0,64420.0,0.31046]
[1728880523842,0.5,64426.0,64423.0,0.155222]
[1728880524075,0.5,64426.0,64424.0,0.155221]
[1728880524295,0.5,64426.0,64420.0,0.31046]
[1728880524296,0.5,64426.0,64422.0,0.155225]
[1728880524520,0.5,64426.0,64419.0,0.23275842]
[1728880524742,0.5,64426.0,64425.0,0.155219]
[1728880524969,0.501,64426.0,64425.0,0.155219]
[1728880526136,0.5,64426.0,64425.0,0.155219]
[1728880526355,0.501,64426.0,64425.0,0.162219]
[1728880526788,0.501,64426.0,64425.0,0.155219]
[1728880526789,0.5,64426.0,64425.0,0.155219]
[1728880527260,0.501,64426.0,64425.0,0.162219]
[1728880527490,0.502,64426.0,64425.0,0.162219]
[1728880527931,0.002,64426.0,64425.0,0.163863]
[1728880528156,0.002,64426.0,64425.0,0.008644]
[1728880529087,0.0779,64426.0,64425.0,0.008644]
[1728880530956,0.233116,64426.0,64425.0,0.008644]
[1728880531178,0.0779,64426.0,64425.0,0.008644]
[1728880531394,0.002,64426.0,64425.0,0.008644]
[1728880531868,0.157216,64426.0,64425.0,0.0135747]
[1728880532095,0.002,64426.0,64425.0,0.0135747]
[1728880532370,0.157216,64426.0,64425.0,0.008644]
[1728880532602,0.002,64426.0,64425.0,0.01349285]
[1728880534524,0.157216,64426.0,64425.0,0.01349285]
[1728880535977,0.002,64426.0,64425.0,0.01349285]
[1728880537690,0.157216,64426.0,64425.0,0.01349285]
[1728880538185,0.002,64426.0,64425.0,0.01349285]
[1728880538418,0.157216,64426.0,64425.0,0.01349285]
[1728880540641,0.157216,64426.0,64425.0,0.01584175]
[1728880540868,0.31744001,64426.0,64425.0,0.00884175]
[1728880541339,0.31744001,64426.0,64425.0,0.003644]
[1728880541843,0.50974001,64426.0,64425.0,0.003644]
[1728880542095,0.51474001,64426.0,64425.0,0.001644]
[1728880542325,0.51674001,64426.0,64425.0,0.003644]
[1728880542563,0.67222729,64426.0,64425.0,0.003644]
[1728880543028,0.67322729,64426.0,64425.0,0.003644]
[1728880544301,0.50974001,64426.0,64425.0,0.003644]
[1728880544547,0.1933,64426.0,64425.0,0.003644]
[1728880544766,0.1933,64426.0,64425.0,0.01372085]
[1728880545009,0.6933,64426.0,64425.0,0.01372085]
[1728880545462,0.6933,64426.0,64425.0,0.003644]
[1728880546962,0.6933,64426.0,64425.0,0.01372085]
[1728880547195,0.6933,64426.0,64425.0,0.003644]
[1728880547196,1.00974001,64426.0,64425.0,0.003644]
[1728880547442,1.00974001,64426.0,64425.0,0.02043874]
[1728880547684,1.00974001,64426.0,64425.0,0.003644]
[1728880550330,0.6933,64426.0,64425.0,0.003644]
[1728880550827,0.6933,64426.0,64425.0,0.17565532]
[1728880550828,0.501,64426.0,64425.0,0.17565532]
[1728880551308,0.501,64426.0,64425.0,0.1852191]
[1728880551533,0.501,64426.0,64425.0,0.1852173]
[1728880551802,0.501,64426.0,64425.0,0.18521746]
[1728880552500,0.501,64426.0,64425.0,0.18521828]
[1728880552995,0.501,64426.0,64425.0,0.18321828]
[1728880553253,0.501,64426.0,64425.0,0.18921828]
[1728880553496,0.501,64426.0,64425.0,0.19021828]
[1728880553720,0.5,64426.0,64425.0,0.18321828]
[1728880553958,0.02432211,64436.0,64426.0,0.310429]
[1728880554216,0.02432211,64436.0,64429.0,0.155209]
[1728880554474,0.155193,64436.0,64429.0,0.155209]
[1728880554718,0.155193,64436.0,64430.0,0.01675682]
[1728880554938,0.34339,64437.0,64430.0,0.01675682]
[1728880555175,0.34339,64437.0,64430.0,0.17196382]
[1728880555926,0.1882,64437.0,64430.0,0.01675682]
[1728880556152,0.1882,64437.0,64431.0,0.155204]
[1728880556379,0.1882,64437.0,64427.0,0.23275842]
[1728880556623,0.343392,64437.0,64430.0,0.155205]
[1728880556859,0.343392,64437.0,64430.0,0.156205]
[1728880557086,0.343392,64437.0,64431.0,0.01674972]
[1728880557801,0.1882,64437.0,64431.0,0.17195272]
[1728880558087,0.1882,64437.0,64431.0,0.17295272]
[1728880558568,0.34339,64437.0,64431.0,0.01774972]
[1728880558815,0.34339,64437.0,64431.0,0.17295272]
[1728880558816,0.1882,64437.0,64431.0,0.17295272]
[1728880559035,0.1882,64437.0,64431.0,0.01774972]
[1728880559264,0.1882,64437.0,64431.0,0.17295372]
[1728880559993,0.1882,64437.0,64432.0,0.155201]
[1728880560251,0.1882,64437.0,64431.0,0.02074972]
[1728880560508,0.1882,64437.0,64433.0,0.01671943]
[1728880560746,0.00899137,64440.0,64439.0,0.155185]
[1728880561242,0.00899137,64440.0,64439.0,0.1718406]
[1728880562911,0.01199137,64440.0,64439.0,0.1718406]
[1728880563841,0.01199137,64440.0,64439.0,0.27494414]
[1728880564078,0.00899137,64440.0,64439.0,0.45055863]
[1728880564303,0.00899137,64440.0,64439.0,0.45523156]
[1728880564811,0.00899137,64440.0,64439.0,0.44745562]
[1728880565038,0.00899137,64440.0,64439.0,0.45523156]
[1728880565487,0.00899137,64440.0,64439.0,0.44745562]
[1728880565946,0.00999137,64440.0,64439.0,0.50075562]
[1728880566390,0.00999137,64440.0,64439.0,0.49775562]
[1728880566832,0.01099137,64440.0,64439.0,0.50575562]
[1728880567074,0.01099137,64440.0,64439.0,0.50575515]
[1728880567739,0.01099137,64440.0,64439.0,0.51770106]
[1728880567959,0.01099137,64440.0,64439.0,0.50817032]
[1728880568189,0.01099137,64440.0,64439.0,0.54570106]
[1728880568899,0.01099137,64440.0,64439.0,0.52270106]
[1728880569122,0.00999137,64440.0,64439.0,0.51470106]
[1728880569341,0.00899137,64440.0,64439.0,0.51170106]
[1728880569567,0.01099137,64440.0,64439.0,0.51217032]
[1728880570935,0.01099137,64440.0,64439.0,0.46001052]
[1728880571616,0.01099137,64440.0,64439.0,0.46687032]
[1728880571834,0.01099137,64440.0,64439.0,0.46487032]
[1728880572294,0.01099137,64440.0,64439.0,0.48787032]
[1728880573171,0.01099137,64440.0,64439.0,0.48987032]
[1728880573389,0.000823,64444.0,64443.0,0.316315]
[1728880573649,0.000823,64444.0,64443.0,0.86322164]
[1728880574299,0.000823,64444.0,64443.0,0.70473436]
[1728880574519,0.000823,64444.0,64443.0,0.69787456]
[1728880575041,0.000823,64444.0,64443.0,0.62757456]
[1728880575274,0.000823,64444.0,64443.0,0.46408728]
[1728880575497,0.000823,64444.0,64443.0,0.63657456]
[1728880575942,0.000823,64444.0,64443.0,0.65057456]
[1728880576810,0.000823,64444.0,64443.0,0.65557456]
[1728880577481,0.000823,64444.0,64443.0,0.81406184]
[1728880577714,0.000823,64444.0,64443.0,0.67857456]
[1728880579321,0.000823,64444.0,64443.0,0.6834337]
[1728880579545,0.000823,64444.0,64443.0,0.84192098]
[1728880579998,0.000823,64444.0,64443.0,0.6834337]
[1728880580495,0.000823,64444.0,64443.0,0.66990283]
[1728880580724,0.000823,64444.0,64443.0,0.6554337]
[1728880580946,0.000823,64444.0,64443.0,0.61943456]
[1728880581420,0.000823,64444.0,64443.0,0.6242937]
[1728880581648,0.000823,64444.0,64443.0,0.61943456]
[1728880582107,0.000823,64444.0,64443.0,0.6242937]
[1728880582327,0.000823,64444.0,64443.0,0.6242939]
[1728880582550,0.000823,64444.0,64443.0,0.63578836]
[1728880583490,0.000823,64444.0,64443.0,0.64078836]
[1728880583953,0.000823,64444.0,64443.0,0.63578836]
[1728880584710,0.000823,64444.0,64443.0,0.05604273]
[1728880584932,0.000823,64444.0,64443.0,0.19972327]
[1728880585416,0.000823,64444.0,64443.0,0.17172327]
[1728880585891,0.000823,64444.0,64443.0,0.19772327]
[1728880586116,0.000823,64444.0,64443.0,0.34421055]
[1728880586590,0.000823,64444.0,64443.0,0.19172327]
[1728880586814,0.000823,64444.0,64443.0,0.18572327]
[1728880587035,0.000823,64444.0,64443.0,0.01654827]
[1728880587253,0.000823,64444.0,64443.0,0.18072327]
[1728880587471,0.000823,64444.0,64443.0,0.18387629]
[1728880587946,0.000823,64444.0,64443.0,0.17587629]
[1728880588176,0.000823,64444.0,64443.0,0.18740255]
[1728880588402,0.000823,64444.0,64443.0,0.19840255]
[1728880589071,0.000823,64444.0,64443.0,0.18940255]
[1728880589298,0.000823,64444.0,64443.0,0.03422755]
[1728880589519,0.000823,64444.0,64443.0,0.20040255]
[1728880589738,0.000823,64444.0,64443.0,0.18940255]
[1728880589954,0.000823,64444.0,64443.0,0.03422755]
[1728880590182,0.000823,64444.0,64443.0,0.03170129]
[1728880590421,0.426496,64444.0,64443.0,0.03170129]
[1728880590752,0.426496,64444.0,64443.0,0.02]
[1728880591293,0.45081356,64444.0,64443.0,0.009]
[1728880591516,0.45081356,64444.0,64443.0,0.011]
[1728880592206,0.15518,64441.0,64440.0,0.001646]
[1728880592653,0.15518,64441.0,64440.0,0.01339467]
[1728880593621,0.42868,64441.0,64440.0,0.01339467]
[1728880593838,0.42868,64441.0,64440.0,0.001646]
[1728880594062,0.43068,64441.0,64440.0,0.001646]
[1728880594292,0.42868,64441.0,64440.0,0.001646]
[1728880595194,0.59190401,64441.0,64440.0,0.001646]
[1728880595842,0.58990401,64441.0,64440.0,0.001646]
[1728880596069,0.58417728,64437.0,64436.0,0.001646]
[1728880596307,0.74740129,64437.0,64436.0,0.001646]
[1728880596534,0.74540129,64437.0,64436.0,0.001646]
[1728880597002,0.74540129,64437.0,64427.0,0.23275842]
[1728880597003,0.002,64431.0,64427.0,0.23275842]
[1728880597297,0.58759928,64428.0,64427.0,0.23275842]
[1728880597526,0.74882329,64428.0,64427.0,0.23275842]
[1728880597773,0.74882329,64428.0,64420.0,0.23275842]
[1728880597774,0.429116,64426.0,64420.0,0.23275842]
[1728880598008,0.59034001,64426.0,64420.0,0.23275842]
[1728880598232,0.59034001,64426.0,64421.0,0.23275842]
[1728880599192,0.43512401,64426.0,64421.0,0.38798642]
[1728880599416,0.43712401,64426.0,64421.0,0.23275842]
[1728880599903,0.46144657,64426.0,64421.0,0.23275842]
[1728880600164,0.61666257,64426.0,64421.0,0.23275842]
[1728880600378,0.46144657,64426.0,64421.0,0.23275842]
[1728880600842,0.61666257,64426.0,64421.0,0.23275842]
[1728880601823,0.02632256,64426.0,64425.0,0.16286801]
[1728880602087,0.02632256,64426.0,64425.0,0.41808701]
[1728880602088,0.002,64426.0,64425.0,0.41808701]
[1728880602304,0.0818,64440.0,64439.0,0.155185]
[1728880604832,0.0838,64440.0,64439.0,0.155185]
[1728880609344,0.0838,64440.0,64439.0,0.16703477]
[1728880611935,0.002823,64440.0,64439.0,0.16703477]
[1728880613785,0.002823,64440.0,64439.0,0.6215514]
[1728880614055,0.002823,64440.0,64439.0,0.62641196]
[1728880614280,0.002823,64440.0,64439.0,0.6379066]
[1728880614508,0.000823,64440.0,64439.0,0.6379066]
[1728880614728,0.000823,64440.0,64439.0,0.6359066]
[1728880614947,0.000823,64440.0,64439.0,0.6449066]
[1728880615175,0.000823,64440.0,64439.0,0.6589066]
[1728880615644,0.000823,64440.0,64439.0,0.6739066]
[1728880615866,0.000823,64440.0,64439.0,0.6849066]
[1728880616094,0.000823,64440.0,64439.0,0.6829066]
[1728880616345,0.000823,64440.0,64439.0,0.68712242]
[1728880616677,0.000823,64440.0,64439.0,0.70112242]
[1728880617022,0.000823,64440.0,64439.0,0.68712242]
[1728880617263,0.000823,64440.0,64439.0,0.68912242]
[1728880617500,0.000823,64440.0,64439.0,0.70726101]
[1728880617733,0.1856,64465.0,64443.0,0.59830024]
[1728880617968,0.1856,64465.0,64443.0,0.63088542]
[1728880618198,0.1856,64465.0,64443.0,0.64263693]
[1728880618673,0.1856,64465.0,64443.0,0.63314229]
[1728880618910,0.1856,64465.0,64443.0,0.61963693]
[1728880619150,0.1856,64465.0,64443.0,0.61014229]
[1728880619615,0.1856,64465.0,64443.0,0.60528314]
[1728880619842,0.1856,64465.0,64443.0,0.62414229]
[1728880620074,0.1856,64465.0,64443.0,0.61928314]
[1728880620316,0.1856,64465.0,64443.0,0.62614229]
[1728880620546,0.1856,64465.0,64443.0,0.61928314]
[1728880620771,0.1856,64465.0,64443.0,0.63073372]
[1728880620998,0.1856,64465.0,64443.0,0.64473372]
[1728880622538,0.1856,64465.0,64443.0,0.81072634]
[1728880622733,0.1856,64465.0,64443.0,0.66973372]
[1728880622957,0.1856,64465.0,64443.0,0.66773372]
[1728880626051,0.082022,64453.0,64443.0,0.66773372]
[1728880626303,0.1852,64452.0,64443.0,0.4726011]
[1728880626725,0.1852,64452.0,64443.0,0.4676011]
[1728880627191,0.1852,64452.0,64443.0,0.29492651]
[1728880628274,0.1852,64452.0,64443.0,0.28092651]
[1728880628485,0.1852,64452.0,64443.0,0.27792651]
[1728880628695,0.1852,64452.0,64443.0,0.27992651]
[1728880629133,0.1852,64452.0,64443.0,0.29092651]
[1728880629396,0.1852,64452.0,64443.0,0.27792651]
[1728880629623,0.1852,64452.0,64443.0,0.29092651]
[1728880630729,0.1852,64452.0,64443.0,0.19092651]
[1728880634375,0.079323,64444.0,64443.0,0.19092651]
[1728880634820,0.079323,64444.0,64443.0,0.03575151]
[1728880634821,0.276323,64444.0,64443.0,0.03575151]
[1728880635050,0.276323,64444.0,64443.0,0.03227791]
[1728880635530,0.431496,64444.0,64443.0,0.03452723]
[1728880635810,0.276323,64444.0,64443.0,0.013]
[1728880636068,0.276323,64444.0,64443.0,0.02352723]
[1728880636551,0.431496,64444.0,64443.0,0.02352723]
[1728880636781,0.276323,64444.0,64443.0,0.01052723]
[1728880637301,0.2608,64441.0,64440.0,0.001646]
[1728880637556,0.41598,64441.0,64440.0,0.001646]
[1728880638073,0.41598,64441.0,64436.0,0.001646]
[1728880638074,0.57478262,64437.0,64436.0,0.001646]
[1728880638327,0.155209,64429.0,64425.0,0.001644]
[1728880638557,0.57480162,64429.0,64425.0,0.001644]
[1728880639064,0.155216,64426.0,64425.0,0.001644]
[1728880639362,0.003,64437.0,64436.0,0.156192]
[1728880639632,0.003,64437.0,64436.0,0.42727778]
[1728880639846,0.003,64437.0,64436.0,0.43678458]
[1728880640514,0.000823,64444.0,64443.0,0.155175]
[1728880640760,0.000823,64444.0,64443.0,0.46535635]
[1728880640982,0.000823,64444.0,64443.0,0.4622534]
[1728880641205,0.000823,64444.0,64443.0,0.45739163]
[1728880641448,0.31024,64467.0,64443.0,0.45739163]
[1728880641449,0.0471951,64476.0,64471.0,0.155108]
[1728880641675,0.0471951,64476.0,64471.0,0.29610062]
[1728880641676,0.000822,64476.0,64471.0,0.29610062]
[1728880641899,0.000822,64476.0,64471.0,0.46042629]
[1728880642213,0.000822,64476.0,64471.0,0.56232463]
[1728880642373,0.000822,64476.0,64471.0,0.61646463]
[1728880643108,0.000822,64476.0,64471.0,0.62146463]
[1728880643352,0.000822,64476.0,64471.0,0.62346463]
[1728880643828,0.000822,64476.0,64471.0,0.62146463]
[1728880644051,0.000822,64476.0,64471.0,0.69698624]
[1728880644280,0.000822,64476.0,64471.0,0.69298624]
[1728880644512,0.000822,64476.0,64471.0,0.70598624]
[1728880644780,0.000822,64476.0,64471.0,0.78227929]
[1728880644995,0.000822,64492.0,64481.0,0.53073823]
[1728880645221,0.000822,64492.0,64481.0,0.69196224]
[1728880645465,0.000822,64492.0,64481.0,0.47544801]
[1728880646196,0.000822,64492.0,64481.0,0.70792117]
[1728880646447,0.000822,64492.0,64481.0,0.70592117]
[1728880646688,0.000822,64492.0,64481.0,0.70792117]
[1728880646907,0.000822,64492.0,64481.0,0.70592117]
[1728880647398,0.000822,64492.0,64481.0,0.70792117]
[1728880647627,0.000822,64492.0,64481.0,0.70553422]
[1728880647859,0.000822,64492.0,64481.0,0.71953422]
[1728880648310,0.000822,64492.0,64481.0,0.71753422]
[1728880648543,0.000822,64492.0,64483.0,0.314219]
[1728880648757,0.000822,64492.0,64483.0,0.47544301]
[1728880649192,0.000822,64492.0,64483.0,0.69191617]
[1728880650326,0.000822,64492.0,64483.0,0.70791617]
[1728880650542,0.000822,64492.0,64483.0,0.70591617]
[1728880651236,0.000822,64492.0,64483.0,0.48944301]
[1728880651908,0.000822,64492.0,64483.0,0.50344301]
[1728880654448,0.000822,64492.0,64483.0,0.51344466]
[1728880654898,0.000822,64492.0,64483.0,0.49944466]
[1728880655319,0.000822,64492.0,64483.0,0.51144466]
[1728880655540,0.000822,64492.0,64483.0,0.57356266]
[1728880655755,0.00989842,64484.0,64483.0,0.57356266]
[1728880655979,0.00989842,64484.0,64483.0,0.59136508]
[1728880656191,0.00989842,64484.0,64483.0,0.59336508]
[1728880656423,0.00989842,64484.0,64483.0,0.59136508]
[1728880656674,0.00989842,64484.0,64483.0,0.57736508]
[1728880656908,0.00989842,64484.0,64483.0,0.79384244]
[1728880657132,0.00989842,64484.0,64483.0,0.80784244]
[1728880657363,0.00989842,64484.0,64483.0,0.80984244]
[1728880657590,0.00989842,64484.0,64483.0,0.76584244]
[1728880657826,0.00989842,64484.0,64483.0,0.76784244]
[1728880658053,0.00989842,64484.0,64483.0,0.79584244]
[1728880658279,0.00989842,64484.0,64483.0,0.78184244]
[1728880658519,0.00989842,64484.0,64483.0,0.79584244]
[1728880658744,0.00989842,64484.0,64483.0,0.77984244]
[1728880659270,0.00989842,64484.0,64483.0,0.79384244]
[1728880659497,0.00989842,64484.0,64483.0,0.77984244]
[1728880659737,0.00989842,64484.0,64483.0,0.76584244]
[1728880659968,0.00989842,64484.0,64483.0,0.56336508]
[1728880660418,0.00989842,64484.0,64483.0,0.55100908]
[1728880660653,0.01072042,64484.0,64483.0,0.55100908]
[1728880660887,0.01072042,64484.0,64483.0,0.54786908]
[1728880661114,0.01072042,64484.0,64483.0,0.57900908]
[1728880661605,0.01072042,64484.0,64483.0,0.54786908]
[1728880661837,0.01072042,64484.0,64483.0,0.57900908]
[1728880662775,0.01072042,64484.0,64483.0,0.54786908]
[1728880663744,0.01072042,64484.0,64483.0,0.50586908]
[1728880663983,0.01072042,64484.0,64483.0,0.40586908]
[1728880664453,0.01072042,64484.0,64483.0,0.41986908]
[1728880664689,0.01072042,64484.0,64483.0,0.39186908]
[1728880665162,0.01072042,64484.0,64483.0,0.34375108]
[1728880665882,0.01072042,64484.0,64483.0,0.35775108]
[1728880666387,0.01072042,64484.0,64483.0,0.44375108]
[1728880666620,0.01072042,64484.0,64483.0,0.43194701]
[1728880666849,0.01072042,64484.0,64483.0,0.44594701]
[1728880667075,0.01072042,64484.0,64483.0,0.270723]
[1728880667292,0.01072042,64484.0,64483.0,0.284723]
[1728880667513,0.01072042,64484.0,64483.0,0.43194701]
[1728880668004,0.01072042,64484.0,64483.0,0.44594701]
[1728880668942,0.01072042,64484.0,64483.0,0.43194701]
[1728880669405,0.01072042,64484.0,64483.0,0.44594701]
[1728880669627,0.01072042,64484.0,64483.0,0.46039563]
[1728880670599,0.01072042,64484.0,64483.0,0.50541048]
[1728880671517,0.01072042,64484.0,64483.0,0.49024972]
[1728880671977,0.01072042,64484.0,64483.0,0.51324972]
[1728880672206,0.01072042,64484.0,64483.0,0.48344139]
[1728880672435,0.01072042,64484.0,64483.0,0.49494709]
[1728880672661,0.01072042,64484.0,64483.0,0.47194709]
[1728880673603,0.01072042,64484.0,64483.0,0.49494709]
[1728880675754,0.01072042,64484.0,64483.0,0.47194709]
[1728880676212,0.01072042,64484.0,64483.0,0.44594701]
[1728880676435,0.20862042,64484.0,64483.0,0.47847147]
[1728880680000,0.28762042,64484.0,64483.0,0.31724746]
[1728880680241,0.28762042,64484.0,64483.0,0.21724712]
[1728880680480,0.28762042,64484.0,64483.0,0.20774816]
[1728880681194,0.28762042,64484.0,64483.0,0.19374816]
[1728880681382,0.28762042,64484.0,64483.0,0.17974816]
[1728880681646,0.28762042,64484.0,64483.0,0.18574816]
[1728880682149,0.28762042,64484.0,64483.0,0.17974816]
[1728880682382,0.28762042,64484.0,64483.0,0.02566916]
[1728880682846,0.28762042,64484.0,64483.0,0.01415662]
[1728880683079,0.28962042,64484.0,64483.0,0.17974749]
[1728880683758,0.29462042,64484.0,64483.0,0.18074749]
[1728880683993,0.28762042,64484.0,64483.0,0.17974749]
[1728880684210,0.28762042,64484.0,64483.0,0.16823487]
[1728880684450,0.28962042,64484.0,64483.0,0.16823487]
[1728880684675,0.28962042,64484.0,64483.0,0.01415587]
[1728880684907,0.44469742,64484.0,64483.0,0.01415587]
[1728880685598,0.44469742,64484.0,64483.0,0.001644]
[1728880686028,0.28962042,64484.0,64483.0,0.006644]
[1728880686257,0.44469742,64484.0,64483.0,0.006644]
[1728880686739,0.44469742,64484.0,64483.0,0.009644]
[1728880687247,0.44469742,64484.0,64472.0,0.00949762]
[1728880687248,0.17394443,64484.0,64472.0,0.00949762]
[1728880687475,0.17394443,64484.0,64471.0,0.02302088]
[1728880687476,0.422391,64478.0,64477.0,0.23275842]
[1728880687931,0.422391,64478.0,64470.0,0.15511]
[1728880687932,0.0796,64474.0,64470.0,0.15511]
[1728880688160,0.0796,64474.0,64471.0,0.01151366]
[1728880688389,0.10390353,64474.0,64472.0,0.155105]
[1728880688610,0.10390353,64474.0,64472.0,0.155104]
[1728880688840,0.0796,64474.0,64473.0,0.155103]
[1728880689077,0.0796,64474.0,64473.0,0.16661031]
[1728880689315,0.01072042,64484.0,64483.0,0.155079]
[1728880689549,0.01072042,64484.0,64483.0,0.57348828]
[1728880690063,0.01072042,64484.0,64483.0,0.59650916]
[1728880690529,0.01072042,64484.0,64483.0,0.60599727]
[1728880690980,0.01172042,64484.0,64483.0,0.61996572]
[1728880691673,0.01272042,64484.0,64483.0,0.62447761]
[1728880692352,0.01272042,64484.0,64483.0,0.61947761]
[1728880692580,0.01272042,64484.0,64483.0,0.45580189]
[1728880692809,0.01272042,64484.0,64483.0,0.4652947]
[1728880693045,0.01272042,64484.0,64483.0,0.30407069]
[1728880693500,0.01272042,64484.0,64483.0,0.31571637]
[1728880693890,0.01272042,64484.0,64483.0,0.45639433]
[1728880695018,0.01272042,64484.0,64483.0,0.45803833]
[1728880695277,0.01272042,64484.0,64483.0,0.61926234]
[1728880695517,0.01272042,64484.0,64483.0,0.60976953]
[1728880695746,0.01272042,64484.0,64483.0,0.61926234]
[1728880696443,0.01272042,64484.0,64483.0,0.60976953]
[1728880696663,0.01272042,64484.0,64483.0,0.60761666]
[1728880696910,0.01272042,64484.0,64483.0,0.19622188]
[1728880698526,0.01272042,64484.0,64483.0,0.184723]
[1728880699664,0.28702042,64484.0,64483.0,0.184723]
[1728880700635,0.28702042,64484.0,64483.0,0.170723]
[1728880700636,0.28602042,64484.0,64483.0,0.170723]
[1728880700864,0.28502042,64484.0,64483.0,0.170723]
[1728880701092,0.28502042,64484.0,64483.0,0.172723]
[1728880701336,0.28502042,64484.0,64483.0,0.158723]
[1728880701787,0.28502042,64484.0,64483.0,0.164723]
[1728880702023,0.28502042,64484.0,64483.0,0.009644]
[1728880702480,0.28502042,64484.0,64483.0,0.007644]
[1728880703177,0.28502042,64484.0,64483.0,0.009644]
[1728880703415,0.60132143,64484.0,64483.0,0.009644]
[1728880703649,0.0778,64471.0,64463.0,0.02304904]
[1728880703896,0.0778,64471.0,64467.0,0.155116]
[1728880704120,0.0778,64471.0,64464.0,0.310246]
[1728880704347,0.0778,64471.0,64470.0,0.15511]
[1728880705034,0.0778,64471.0,64465.0,0.465366]
[1728880705305,0.0778,64471.0,64463.0,0.1]
[1728880705306,0.0778,64471.0,64470.0,0.15511]
[1728880706016,0.0778,64471.0,64469.0,0.004]
[1728880706251,0.0778,64471.0,64470.0,0.15511]
[1728880706760,0.0778,64471.0,64470.0,0.15811]
[1728880706978,0.0778,64471.0,64470.0,0.15511]
[1728880707450,0.001,64471.0,64470.0,0.15511]
[1728880707692,0.001,64471.0,64470.0,0.156754]
[1728880707912,0.0829,64477.0,64476.0,0.155096]
[1728880709867,0.0859,64477.0,64476.0,0.155096]
[1728880712131,0.0829,64477.0,64476.0,0.155096]
[1728880712391,0.0859,64477.0,64476.0,0.155096]
[1728880712640,0.0829,64477.0,64476.0,0.155096]
[1728880712870,0.0829,64477.0,64476.0,0.160096]
[1728880713800,0.0839,64477.0,64476.0,0.168096]
[1728880715396,0.0839,64477.0,64476.0,0.013]
[1728880717000,0.238994,64477.0,64476.0,0.013]
[1728880717733,0.0839,64477.0,64476.0,0.013]
[1728880717965,0.0829,64477.0,64476.0,0.005]
[1728880718192,0.0829,64477.0,64476.0,0.160096]
[1728880718431,0.0829,64477.0,64476.0,0.155096]
[1728880718702,0.0829,64477.0,64472.0,0.310209]
[1728880718703,0.0859,64477.0,64474.0,0.1551]
[1728880718921,0.0829,64477.0,64474.0,0.1551]
[1728880719162,0.0829,64477.0,64472.0,0.310209]
[1728880719607,0.0829,64477.0,64472.0,0.155103]
[1728880719608,0.0859,64477.0,64472.0,0.155103]
[1728880719609,0.0829,64477.0,64473.0,0.155102]
[1728880719828,0.0829,64477.0,64476.0,0.001644]
[1728880720319,0.0829,64477.0,64476.0,0.005644]
[1728880721472,0.237994,64477.0,64476.0,0.005644]
[1728880721908,0.0829,64477.0,64476.0,0.005644]
[1728880722147,0.0829,64477.0,64476.0,0.006644]
[1728880724487,0.237994,64477.0,64476.0,0.006644]
[1728880724962,0.39921801,64477.0,64476.0,0.006644]
[1728880725189,0.155108,64471.0,64470.0,0.001644]
[1728880725425,0.58893201,64471.0,64470.0,0.001644]
[1728880726552,0.59093201,64471.0,64470.0,0.001644]
[1728880726783,0.62124013,64471.0,64470.0,0.002644]
[1728880727049,0.61924013,64471.0,64470.0,0.002644]
[1728880727990,0.60193201,64471.0,64470.0,0.003644]
[1728880728666,0.2856,64471.0,64470.0,0.003644]
[1728880728893,0.44682401,64471.0,64470.0,0.003644]
[1728880729191,0.60193201,64471.0,64470.0,0.003644]
[1728880730582,0.60693201,64471.0,64470.0,0.003644]
[1728880731240,0.63124095,64471.0,64470.0,0.003644]
[1728880732460,0.005,64465.0,64455.0,0.23275842]
[1728880732690,0.56532196,64456.0,64455.0,0.23275842]
[1728880733167,0.41017796,64456.0,64445.0,0.4777]
[1728880733410,0.155162,64449.0,64445.0,0.4777]
[1728880733621,0.31031,64452.0,64442.0,0.23275842]
[1728880733845,0.155159,64450.0,64445.0,0.15517]
[1728880734329,0.310301,64454.0,64443.0,0.31035]
[1728880734562,0.310301,64454.0,64444.0,0.155172]
[1728880734563,0.155161,64449.0,64444.0,0.155172]
[1728880734854,0.155155,64452.0,64446.0,0.155167]
[1728880735093,0.41517796,64456.0,64442.0,0.23275842]
[1728880735318,0.001,64450.0,64446.0,0.155166]
[1728880735578,0.155161,64449.0,64444.0,0.155171]
[1728880736033,0.155161,64449.0,64442.0,0.23275842]
[1728880736034,0.155159,64450.0,64445.0,0.155169]
[1728880736267,0.155163,64449.0,64443.0,0.155174]
[1728880736495,0.41017796,64456.0,64442.0,0.23275842]